bitfinex/quotes_ETHUSD_20240621
["timestamp","ask_amount","ask_price","bid_price","bid_amount"]
[1718975955537,2.28913,3494.8,3494.3,0.55]
[1718975955699,4.64501,3495.3,3494.4,0.5585537]
[1718975955936,2.28912,3494.8,3494.5,0.55]
[1718975956301,2.28914,3494.8,3494.5,0.55]
[1718975956503,2.28914,3494.8,3494.3,0.55]
[1718975956702,2.28914,3494.8,3494.3,1.2260517]
[1718975957000,2.28914,3494.8,3494.4,0.05417598]
[1718975957198,2.28914,3494.8,3494.5,0.55]
[1718975959243,2.28923,3494.7,3494.5,0.55]
[1718975959443,2.28925,3494.6,3494.4,0.55]
[1718975959596,2.28925,3494.6,3494.4,0.89075187]
[1718975960134,2.28925,3494.6,3494.4,1.78150287]
[1718975960313,2.28904,3495.0,3494.4,1.78150287]
[1718975960314,2.28931,3494.5,3494.4,0.890751]
[1718975960504,2.3562,3495.3,3493.8,7.37]
[1718975960505,2.2891,3494.9,3493.8,7.37]
[1718975960820,2.2897,3493.9,3493.8,7.37]
[1718975961019,2.28981,3493.8,3493.5,1.14643]
[1718975961232,2.28981,3493.8,3493.5,1.388223]
[1718975961757,2.28986,3493.7,3493.5,1.388223]
[1718975961912,2.2899,3493.6,3493.2,8.516465]
[1718975962234,2.28984,3493.7,3493.2,8.516465]
[1718975962556,2.28996,3493.5,3493.1,0.29928056]
[1718975962853,2.29003,3493.4,3493.1,0.29928056]
[1718975963022,2.29003,3493.4,3493.0,2.86]
[1718975963023,2.29017,3493.2,3493.0,2.86]
[1718975964047,2.29022,3493.1,3493.0,2.86]
[1718975965338,4.58044,3493.1,3493.0,2.86]
[1718975966055,2.29014,3493.3,3492.9,2.86]
[1718975966056,4.58058,3493.0,3492.9,2.86]
[1718975966351,4.58136,3492.4,3492.3,20.796823]
[1718975966518,2.2906,3492.6,3492.3,1.146823]
[1718975966738,2.29068,3492.4,3492.3,1.146823]
[1718975967046,4.58136,3492.4,3492.3,1.146823]
[1718975968325,2.29068,3492.4,3492.3,1.146823]
[1718975969132,2.29068,3492.4,3491.9,0.29923949]
[1718975969434,2.29068,3492.4,3491.9,1.46778344]
[1718975969636,2.29062,3492.5,3491.9,1.46778344]
[1718975969949,2.29049,3492.7,3491.9,1.46778344]
[1718975970346,2.29088,3492.1,3491.9,1.46778344]
[1718975970562,4.5819,3492.0,3491.9,0.29923949]
[1718975971215,2.29111,3491.8,3491.3,19.65]
[1718975971418,2.29115,3491.7,3491.1,2.29153]
[1718975971748,2.29128,3491.5,3491.1,3.0]
[1718975972055,2.29128,3491.5,3491.2,3.12033954]
[1718975972620,2.29115,3491.7,3491.2,3.12033954]
[1718975972951,2.29078,3492.3,3491.6,2.29121]
[1718975973252,2.29087,3492.2,3491.6,2.29121]
[1718975973425,2.29087,3492.2,3491.7,0.458255]
[1718975973627,2.2909,3492.1,3491.7,0.458255]
[1718975973948,2.29109,3491.8,3491.3,0.55]
[1718975974933,2.29109,3491.8,3491.3,2.8414]
[1718975975526,2.29117,3491.7,3491.2,3.12033954]
[1718975975728,2.29109,3491.8,3491.2,1.97314354]
[1718975975729,2.29122,3491.6,3491.2,1.97314354]
[1718975975915,2.29122,3491.6,3491.2,0.29926354]
[1718975975916,2.29141,3491.3,3491.2,0.29926354]
[1718975976114,2.2914,3491.4,3491.1,2.86]
[1718975976756,2.29147,3491.2,3491.1,2.86]
[1718975977716,6.87441,3491.2,3491.1,2.86]
[1718975981237,2.29147,3491.2,3491.1,2.86]
[1718975981863,4.67143,3491.8,3491.1,3.146]
[1718975981864,2.29122,3491.6,3491.1,3.146]
[1718975982047,2.29128,3491.5,3491.1,3.146]
[1718975983619,2.29135,3491.4,3491.1,3.146]
[1718975984330,2.29117,3491.7,3491.1,5.43749]
[1718975984668,2.29121,3491.6,3491.2,0.772915]
[1718975986162,2.29126,3491.6,3491.2,0.772915]
[1718975986361,2.29133,3491.5,3491.1,0.29849616]
[1718975986674,1.95833,3491.5,3491.1,0.29849616]
[1718975987465,2.29122,3491.6,3491.1,0.29849616]
[1718975987674,7.66148,3492.2,3491.2,2.55047562]
[1718975987994,2.29095,3492.0,3491.4,2.29132]
[1718975988657,2.29103,3491.9,3491.2,0.25901562]
[1718975988855,2.29116,3491.7,3491.1,2.58997616]
[1718975989575,2.29128,3491.5,3491.1,0.29849616]
[1718975990041,2.29122,3491.6,3491.1,0.29849616]
[1718975990539,2.29115,3491.7,3491.1,2.59002616]
[1718975990745,2.29089,3492.1,3491.2,0.25900262]
[1718975990963,2.29068,3492.4,3491.3,2.9884]
[1718975991331,2.2908,3492.3,3491.3,2.9884]
[1718975991636,2.2908,3492.3,3491.7,2.29113]
[1718975992066,2.29069,3492.4,3491.8,2.29105]
[1718975992282,2.29069,3492.4,3491.7,2.29113]
[1718975992283,2.2905,3492.7,3492.1,2.29088]
[1718975992427,2.29009,3493.3,3492.2,0.229088]
[1718975992772,2.29021,3493.2,3492.5,2.29057]
[1718975993062,2.29021,3493.2,3492.6,2.84055]
[1718975993422,2.2903,3493.0,3492.6,0.55]
[1718975993627,2.2903,3493.0,3492.6,0.513141]
[1718975993826,2.29,3493.5,3492.2,0.229088]
[1718975994059,2.2904,3492.9,3492.2,7.37]
[1718975994226,2.29044,3492.8,3492.3,0.55]
[1718975994668,2.29036,3492.9,3492.2,2.29075]
[1718975994881,2.29043,3492.8,3492.3,0.55]
[1718975995028,2.29036,3492.9,3492.4,0.511587]
[1718975995379,2.29029,3493.0,3492.5,0.55]
[1718975995675,2.29042,3492.8,3492.5,0.55]
[1718975996036,2.29042,3492.8,3492.4,0.511587]
[1718975996370,2.29042,3492.8,3492.1,1.725]
[1718975996371,2.29049,3492.7,3492.1,2.29088]
[1718975996728,2.29049,3492.7,3492.2,2.29079]
[1718975996927,2.29057,3492.6,3492.1,2.29086]
[1718975998584,2.2905,3492.7,3492.2,2.29081]
[1718975998871,2.29056,3492.6,3492.3,0.744175]
[1718975999185,2.2905,3492.7,3492.3,0.744175]
[1718975999646,2.29037,3492.9,3492.3,3.034905]
[1718976000339,2.29037,3492.9,3492.4,2.4043]
[1718976000340,2.29044,3492.8,3492.4,2.4043]
[1718976000539,2.29049,3492.7,3492.4,2.4043]
[1718976000775,2.29037,3492.9,3492.4,2.9482275]
[1718976000776,2.29036,3492.9,3492.4,2.9482275]
[1718976001000,2.29044,3492.8,3492.4,2.9482275]
[1718976001279,2.29012,3493.3,3492.4,2.9482275]
[1718976001483,2.29017,3493.2,3492.5,1.32082125]
[1718976002571,2.29006,3493.4,3492.8,2.2904]
[1718976002760,2.3895,3494.1,3493.2,2.29011]
[1718976002761,2.28971,3493.9,3493.2,2.29011]
[1718976002962,2.28971,3493.9,3493.3,0.45804]
[1718976002963,2.28984,3493.7,3493.3,0.45804]
[1718976003138,2.28952,3494.2,3493.3,0.45804]
[1718976003341,2.28976,3493.9,3493.3,0.45804]
[1718976003580,2.28978,3493.8,3493.3,0.45804]
[1718976003794,2.28992,3493.6,3493.3,0.45804]
[1718976004078,2.29009,3493.3,3493.2,2.277]
[1718976004377,2.29029,3493.0,3492.9,7.37]
[1718976004583,2.29036,3492.9,3492.6,1.146749]
[1718976004961,2.29043,3492.8,3492.6,1.146749]
[1718976005164,2.29049,3492.7,3492.6,1.146749]
[1718976005398,2.29038,3492.9,3492.3,14.372]
[1718976005559,2.765115,3493.5,3492.6,2.2905]
[1718976005560,2.29023,3493.1,3492.6,2.2905]
[1718976005763,2.28984,3493.7,3492.7,1.725]
[1718976005961,2.28984,3493.7,3493.1,4.71999]
[1718976006201,2.2899,3493.6,3493.2,0.701028]
[1718976006375,2.28964,3494.0,3493.2,2.991128]
[1718976006582,2.28964,3494.0,3493.4,2.28996]
[1718976006764,2.28954,3494.2,3493.4,2.28996]
[1718976006765,2.28959,3494.1,3493.4,2.28996]
[1718976006963,2.28959,3494.1,3493.5,0.8141078]
[1718976007162,2.28965,3494.0,3493.5,0.8141078]
[1718976007406,2.28971,3493.9,3493.6,0.55]
[1718976007902,2.2899,3493.6,3493.5,0.8141078]
[1718976008108,2.2899,3493.6,3493.3,2.86]
[1718976008667,2.28983,3493.8,3493.3,2.86]
[1718976008863,2.28957,3494.1,3493.6,2.28988]
[1718976009167,2.28957,3494.1,3493.7,0.457989]
[1718976009379,2.28964,3494.0,3493.7,0.457989]
[1718976010922,2.28964,3494.0,3493.4,2.29]
[1718976011210,2.28964,3494.0,3493.5,0.55]
[1718976012768,2.28962,3494.1,3493.5,2.83991]
[1718976013000,2.28951,3494.2,3493.5,2.83991]
[1718976013001,2.28964,3494.0,3493.5,2.83991]
[1718976013205,2.28971,3493.9,3493.5,0.55]
[1718976013414,2.28971,3493.9,3493.4,0.55]
[1718976013564,2.28971,3493.9,3493.4,1.679204]
[1718976014797,2.28971,3493.9,3493.4,3.969224]
[1718976014969,2.28951,3494.2,3493.6,2.2899]
[1718976015169,2.28951,3494.2,3493.7,2.28982]
[1718976015595,2.28957,3494.1,3493.6,2.28988]
[1718976015804,2.28957,3494.1,3493.7,0.55]
[1718976016117,2.28938,3494.4,3493.7,2.83983]
[1718976016270,2.28951,3494.2,3493.7,2.83983]
[1718976016690,2.29002,3493.5,3493.3,2.86]
[1718976017008,2.28945,3494.3,3493.0,9.66029]
[1718976017009,2.29019,3493.2,3493.0,7.37]
[1718976017212,2.29042,3492.8,3492.7,2.86]
[1718976017428,2.28988,3493.7,3492.4,7.37]
[1718976017429,2.2906,3492.6,3492.4,7.37]
[1718976017578,2.29063,3492.5,3492.3,0.29907602]
[1718976017770,4.58124,3492.5,3492.4,4.0]
[1718976017976,2.29068,3492.4,3492.3,0.29907602]
[1718976018581,2.29033,3493.0,3492.3,0.29907602]
[1718976018582,2.29057,3492.6,3492.3,0.29907602]
[1718976018765,2.29062,3492.5,3492.3,0.29907602]
[1718976018967,2.2901,3493.3,3492.3,0.29907602]
[1718976018968,4.58136,3492.4,3492.3,0.29907602]
[1718976020309,4.5815,3492.3,3492.2,2.86]
[1718976020482,6.87225,3492.3,3492.2,2.86]
[1718976022384,2.29127,3491.6,3491.2,7.37]
[1718976022719,2.29134,3491.4,3491.3,1.0808782]
[1718976022873,2.29134,3491.4,3491.0,2.86]
[1718976023074,2.29128,3491.5,3491.0,5.1516]
[1718976023295,2.29122,3491.6,3491.0,5.1516]
[1718976023470,2.29128,3491.5,3491.1,2.2877533]
[1718976024624,2.29095,3492.0,3491.1,2.2877533]
[1718976024914,2.29097,3492.0,3491.4,2.29133]
[1718976025208,2.29101,3491.9,3491.2,1.17950163]
[1718976025414,2.29115,3491.7,3491.3,1.06391358]
[1718976027279,2.29108,3491.8,3491.3,3.35531358]
[1718976027490,2.29141,3491.3,3491.1,0.29929089]
[1718976027780,2.29121,3491.6,3491.1,0.29929089]
[1718976027781,2.29147,3491.2,3491.1,0.29929089]
[1718976028205,2.29147,3491.2,3490.8,12.28]
[1718976028399,2.29147,3491.2,3490.9,2.7176019]
[1718976028603,2.29147,3491.2,3490.7,4.01278]
[1718976028818,2.29134,3491.4,3490.8,2.29171]
[1718976029126,2.29139,3491.4,3490.8,0.29808949]
[1718976029280,2.29128,3491.5,3490.9,2.29166]
[1718976029484,2.29128,3491.5,3491.0,0.66024895]
[1718976030022,2.29133,3491.5,3491.0,0.66024895]
[1718976030316,2.29122,3491.6,3491.1,2.29153]
[1718976030524,2.29089,3492.1,3491.4,2.29133]
[1718976030680,2.29114,3491.7,3491.2,2.84146]
[1718976033484,2.29095,3492.0,3491.2,2.84146]
[1718976033485,2.29108,3491.8,3491.3,2.29139]
[1718976034176,2.4862,3492.4,3491.2,0.55]
[1718976034383,2.29092,3492.1,3491.0,0.66024895]
[1718976034590,2.29139,3491.4,3491.0,0.66024895]
[1718976034837,2.29154,3491.1,3490.8,0.29808949]
[1718976034986,2.29108,3491.8,3490.8,0.29808949]
[1718976034987,2.29127,3491.5,3490.8,0.29808949]
[1718976035188,2.29161,3491.0,3490.8,0.29808949]
[1718976035884,2.29154,3491.1,3490.8,0.29808949]
[1718976036281,2.29161,3491.0,3490.8,0.29808949]
[1718976036531,2.29155,3491.1,3490.8,1.20841284]
[1718976036694,2.29129,3491.5,3491.0,2.29155]
[1718976037026,2.29135,3491.4,3490.9,2.29166]
[1718976037343,2.29135,3491.4,3491.0,1.07210728]
[1718976038739,2.29141,3491.3,3491.0,1.07210728]
[1718976039037,2.29141,3491.3,3491.0,0.55]
[1718976039211,2.29127,3491.5,3490.8,3.50013284]
[1718976039212,2.29136,3491.4,3490.9,0.55]
[1718976039922,2.29141,3491.3,3490.9,0.55]
[1718976040714,2.29135,3491.4,3490.9,0.55]
[1718976040928,2.29135,3491.4,3490.9,4.37124228]
[1718976043944,2.29093,3492.1,3491.6,2.29114]
[1718976044115,1.95782,3492.2,3491.7,2.2911]
[1718976044447,2.29076,3492.3,3491.7,0.898081]
[1718976044651,2.29076,3492.3,3491.5,2.29121]
[1718976045312,2.29088,3492.1,3491.5,2.29121]
[1718976046049,2.29099,3492.0,3491.4,2.3915]
[1718976046352,2.29104,3491.9,3491.4,4.68283]
[1718976046552,2.29104,3491.9,3491.5,1.606529]
[1718976047458,2.29102,3491.9,3491.5,1.606529]
[1718976047748,2.29102,3491.9,3491.2,9.091]
[1718976047749,2.29115,3491.7,3491.2,11.38246]
[1718976048057,2.29115,3491.7,3491.3,0.55]
[1718976049667,2.29115,3491.7,3491.3,2.8414]
[1718976049816,2.29115,3491.7,3491.3,5.7014]
[1718976050153,2.29115,3491.7,3491.4,0.971393]
[1718976050364,2.29127,3491.5,3491.4,0.971393]
[1718976050531,2.29127,3491.5,3491.3,2.86]
[1718976050919,2.2912,3491.7,3491.3,2.86]
[1718976050920,2.29122,3491.6,3491.3,2.86]
[1718976051121,2.29115,3491.7,3491.3,2.86]
[1718976051735,2.29119,3491.7,3491.3,2.86]
[1718976051925,2.29119,3491.7,3491.3,3.837786]
[1718976052759,2.29134,3491.4,3491.3,2.86]
[1718976053063,2.29146,3491.3,3490.9,0.29842365]
[1718976053358,2.29159,3491.1,3490.9,0.29842365]
[1718976053867,2.29159,3491.1,3490.8,7.37]
[1718976054027,2.2916,3491.0,3490.8,7.37]
[1718976054217,2.29147,3491.2,3490.8,7.37]
[1718976055858,2.29155,3491.1,3490.8,7.37]
[1718976056957,2.2916,3491.0,3490.8,7.37]
[1718976058255,2.4087,3491.2,3490.5,1.147394]
[1718976058436,2.29186,3490.6,3490.5,1.147394]
[1718976058619,6.87558,3490.6,3490.5,1.147394]
[1718976061869,2.29227,3490.0,3489.7,9.786]
[1718976062043,2.29227,3490.0,3489.6,1.147713]
[1718976062244,2.29239,3489.9,3489.5,2.86]
[1718976062447,2.2924,3489.8,3489.6,0.55]
[1718976062627,2.3591,3490.5,3489.4,0.55]
[1718976062628,2.29246,3489.7,3489.4,0.55]
[1718976062866,2.29246,3489.7,3489.4,3.420905]
[1718976063036,2.29246,3489.7,3489.4,2.273117]
[1718976063651,2.29247,3489.7,3489.4,2.273117]
[1718976064061,2.29247,3489.7,3489.4,1.723117]
[1718976064244,2.29205,3490.4,3489.4,1.723117]
[1718976064442,2.29251,3489.7,3489.4,1.723117]
[1718976064631,2.29233,3489.9,3489.4,1.723117]
[1718976064855,2.29227,3490.0,3489.4,1.723117]
[1718976065040,2.2924,3489.8,3489.4,1.723117]
[1718976065253,2.29246,3489.7,3489.3,2.73639184]
[1718976066975,2.29259,3489.5,3489.3,0.29899184]
[1718976067200,4.5853,3489.4,3489.3,0.29899184]
[1718976067470,2.29259,3489.5,3488.5,2.29324]
[1718976067471,2.29303,3488.9,3488.6,1.148007]
[1718976067654,2.29292,3489.0,3488.6,3.826092]
[1718976067655,2.29311,3488.7,3488.6,3.826092]
[1718976067972,2.29311,3488.7,3488.3,2.3543]
[1718976067973,2.29318,3488.6,3488.3,2.3543]
[1718976068183,2.29333,3488.4,3488.2,1.148166]
[1718976068337,2.29333,3488.4,3488.2,2.400517]
[1718976068663,2.29326,3488.5,3488.2,1.252351]
[1718976069394,2.29332,3488.4,3488.3,1.3775911]
[1718976069674,2.29332,3488.4,3488.0,2.86]
[1718976069675,2.29351,3488.1,3488.0,2.86]
[1718976070481,2.29407,3487.3,3487.1,7.37]
[1718976070778,2.29406,3487.3,3486.7,6.87542]
[1718976070990,2.29394,3487.5,3486.9,1.148594]
[1718976071189,2.29391,3487.5,3486.9,3.442864]
[1718976071662,2.29374,3487.8,3486.9,1.148594]
[1718976071663,2.29398,3487.4,3486.9,1.148594]
[1718976071861,2.29399,3487.4,3486.9,1.37058983]
[1718976072261,2.29384,3487.6,3487.1,2.2941]
[1718976072454,2.29391,3487.5,3487.0,2.29422]
[1718976072856,2.29391,3487.5,3486.9,3.66487983]
[1718976073159,2.29396,3487.5,3487.0,3.89374971]
[1718976073379,2.29391,3487.5,3487.0,1.59954971]
[1718976073582,2.29391,3487.5,3487.0,3.89377971]
[1718976074919,2.29397,3487.4,3487.0,1.59954971]
[1718976075051,2.29418,3487.1,3486.7,3.15816031]
[1718976075255,2.29418,3487.1,3486.8,0.55]
[1718976075553,2.2941,3487.2,3486.8,0.55]
[1718976075758,2.29422,3487.1,3486.8,0.55]
[1718976075953,2.2941,3487.2,3486.8,0.55]
[1718976076169,2.29404,3487.3,3486.8,0.55]
[1718976076362,2.29416,3487.2,3486.8,0.55]
[1718976076751,2.29436,3486.8,3486.7,2.86]
[1718976077773,6.88407,3486.3,3486.2,1.15957339]
[1718976077960,9.17876,3486.3,3486.2,1.15957339]
[1718976079089,9.17876,3486.3,3486.2,0.01077539]
[1718976079595,13.48045,3486.3,3486.2,0.01077539]
[1718976079957,11.18576,3486.3,3486.2,0.01077539]
[1718976082397,8.89107,3486.3,3486.2,0.01077539]
[1718976082580,6.88407,3486.3,3486.2,0.01077539]
[1718976084064,9.17876,3486.3,3486.2,0.01077539]
[1718976084473,6.88407,3486.3,3486.2,0.01077539]
[1718976084868,7.801927,3486.3,3486.2,0.01077539]
[1718976085562,7.801927,3486.3,3484.3,3.44535]
[1718976085563,2.29511,3485.7,3484.3,3.44535]
[1718976085763,2.3064,3486.2,3484.7,2.3601]
[1718976085764,2.29516,3485.6,3484.7,2.3601]
[1718976086058,2.29502,3485.8,3484.8,0.23601]
[1718976086400,2.29469,3486.3,3485.7,2.29505]
[1718976086700,2.29484,3486.1,3485.6,2.4567]
[1718976086858,2.4114,3487.1,3485.6,2.4567]
[1718976086859,2.29495,3486.0,3485.7,0.55]
[1718976087056,2.29495,3486.0,3485.7,1.080198]
[1718976087558,2.29468,3486.4,3484.8,2.69271]
[1718976087697,2.29495,3486.0,3485.4,2.29528]
[1718976087896,2.29495,3486.0,3485.5,2.84521]
[1718976088611,2.29509,3485.7,3485.5,0.55]
[1718976088793,2.29485,3486.1,3484.8,2.69271]
[1718976088987,5.29424,3487.0,3484.8,2.4567]
[1718976088988,2.29534,3485.4,3484.8,2.4567]
[1718976089182,2.29511,3485.7,3484.4,0.29847009]
[1718976089183,2.29561,3484.9,3484.4,0.29847009]
[1718976089380,2.29555,3485.0,3484.3,5.90203]
[1718976089381,2.29575,3484.7,3484.3,3.60604]
[1718976089612,2.2956,3485.0,3484.4,2.29589]
[1718976089924,2.29503,3485.8,3484.4,2.29589]
[1718976089925,2.29562,3484.9,3484.4,2.29594]
[1718976090210,2.29562,3484.9,3484.4,3.574845]
[1718976091203,2.29555,3485.0,3484.4,3.574845]
[1718976091808,2.29555,3485.0,3484.5,0.55]
[1718976093367,2.29562,3484.9,3484.5,0.55]
[1718976093680,2.29575,3484.7,3484.5,0.55]
[1718976094012,2.29562,3484.9,3484.3,2.296]
[1718976094222,2.2955,3485.1,3484.4,0.55]
[1718976094716,2.2957,3484.8,3484.4,0.55]
[1718976095272,2.29563,3484.9,3484.4,0.55]
[1718976095508,2.29555,3485.0,3484.4,0.55]
[1718976095674,2.29563,3484.9,3484.4,1.44385959]
[1718976095875,2.29555,3485.0,3484.4,3.73979959]
[1718976096093,2.29563,3484.9,3484.4,3.73979959]
[1718976096314,2.2958,3484.7,3484.1,3.16866187]
[1718976096472,2.29589,3484.5,3484.1,3.16866187]
[1718976096669,2.29607,3484.2,3484.1,3.16866187]
[1718976097077,2.29607,3484.2,3484.1,2.87]
[1718976097408,2.29607,3484.2,3483.5,2.88]
[1718976097409,2.29647,3483.7,3483.5,2.88]
[1718976097708,2.29647,3483.7,3483.4,1.270878]
[1718976097910,2.29647,3483.7,3483.4,0.121277]
[1718976098075,2.29653,3483.6,3483.4,0.121277]
[1718976100137,2.29653,3483.6,3483.5,0.55]
[1718976100784,2.29641,3483.7,3483.5,0.55]
[1718976100985,2.29636,3483.8,3483.5,0.55]
[1718976101227,2.29641,3483.7,3483.5,0.55]
[1718976101620,2.29638,3483.8,3483.5,0.55]
[1718976102311,2.29642,3483.7,3483.5,0.55]
[1718976102485,2.29647,3483.6,3483.5,0.55]
[1718976102689,2.29642,3483.7,3483.5,0.55]
[1718976103223,2.29647,3483.6,3483.5,0.55]
[1718976103429,2.29628,3483.9,3483.5,0.55]
[1718976103725,2.29647,3483.6,3483.5,0.55]
[1718976104404,0.979485,3486.0,3483.5,0.55]
[1718976104614,2.29606,3484.3,3483.5,0.55]
[1718976104832,2.29583,3484.6,3483.5,0.55]
[1718976105014,2.29626,3484.0,3483.5,0.55]
[1718976105321,2.29603,3484.3,3483.5,0.55]
[1718976105526,2.2963,3483.9,3483.5,0.55]
[1718976105713,2.2959,3484.5,3483.8,2.29634]
[1718976105914,2.2959,3484.5,3483.9,0.55]
[1718976105915,2.29601,3484.3,3483.9,0.55]
[1718976106112,2.29615,3484.1,3483.9,0.55]
[1718976106424,2.29623,3484.0,3483.7,0.55]
[1718976106590,2.29608,3484.2,3483.7,1.43454047]
[1718976107042,2.29621,3484.0,3483.7,1.43454047]
[1718976109495,2.29581,3484.6,3483.7,1.43454047]
[1718976109848,2.29633,3483.9,3483.7,0.55]
[1718976110598,2.29633,3483.9,3483.4,9.787867]
[1718976110599,6.88962,3483.5,3483.4,0.121277]
[1718976110798,9.18616,3483.5,3483.4,0.121277]
[1718976110998,7.808236,3483.5,3483.4,0.121277]
[1718976111454,10.104776,3483.5,3483.4,0.121277]
[1718976112442,7.808236,3483.5,3483.4,0.121277]
[1718976112601,6.88962,3483.5,3483.4,0.121277]
[1718976112802,2.29651,3483.6,3483.4,0.121277]
[1718976113141,0.75,3485.5,3483.4,0.121277]
[1718976113142,2.2964,3483.8,3483.4,0.121277]
[1718976113324,2.2964,3483.8,3483.5,0.55]
[1718976113636,2.29647,3483.6,3483.5,0.55]
[1718976113802,2.29635,3483.8,3483.5,0.55]
[1718976114003,2.29589,3484.5,3483.5,0.55]
[1718976114004,2.29589,3484.5,3483.5,0.8467997]
[1718976114203,2.4722,3484.9,3483.7,2.2964]
[1718976114204,2.29614,3484.2,3483.7,2.2964]
[1718976114405,2.29614,3484.2,3483.8,0.55]
[1718976114636,2.29602,3484.3,3483.8,0.55]
[1718976114938,2.29609,3484.2,3483.8,0.55]
[1718976115140,2.29593,3484.5,3483.8,5.699018]
[1718976115301,2.29596,3484.4,3483.8,5.699018]
[1718976115507,2.29581,3484.7,3483.9,2.29622]
[1718976115508,2.29588,3484.5,3483.9,2.29622]
[1718976115704,2.29581,3484.7,3484.1,2.29611]
[1718976115945,2.3894,3485.3,3484.4,2.29592]
[1718976116120,2.2955,3485.1,3484.2,0.55]
[1718976116353,2.29562,3484.9,3484.4,2.29593]
[1718976116515,2.29562,3484.9,3484.5,0.55]
[1718976116842,4.59079,3485.3,3484.5,0.55]
[1718976117016,2.29529,3485.4,3484.7,2.29574]
[1718976117216,2.29532,3485.4,3484.8,0.55]
[1718976117443,2.3506,3485.8,3484.8,0.55]
[1718976117444,2.29516,3485.6,3484.8,0.55]
[1718976117654,2.29522,3485.5,3484.8,0.55]
[1718976117855,2.29536,3485.3,3484.8,2.84564]
[1718976118057,2.29549,3485.1,3484.8,0.55]
[1718976118257,2.29555,3485.0,3484.8,0.55]
[1718976118547,2.29536,3485.3,3484.8,0.55]
[1718976118952,2.29557,3485.0,3484.8,0.55]
[1718976119152,2.29581,3484.7,3484.4,7.37]
[1718976119451,2.29608,3484.2,3483.9,1.0291698]
[1718976119650,2.29575,3484.7,3483.8,2.3797]
[1718976119869,2.29581,3484.6,3484.1,2.29614]
[1718976120170,2.29588,3484.5,3484.0,2.2962]
[1718976120371,2.29588,3484.5,3483.9,2.29621]
[1718976120372,2.29602,3484.3,3483.8,2.3797]
[1718976120512,2.29602,3484.3,3483.8,5.89074]
[1718976120713,2.29621,3484.0,3483.6,2.87]
[1718976120955,0.229557,3484.9,3483.4,0.121277]
[1718976120956,2.29586,3484.6,3483.4,0.121277]
[1718976121118,2.29608,3484.2,3483.4,0.121277]
[1718976121317,2.29588,3484.5,3483.4,0.121277]
[1718976121558,2.29646,3483.7,3483.4,0.121277]
[1718976121726,2.2962,3484.1,3483.4,0.121277]
[1718976122055,2.471,3485.9,3483.4,0.121277]
[1718976122056,2.29575,3484.7,3484.1,2.29614]
[1718976122239,2.29575,3484.7,3483.6,2.29647]
[1718976122240,2.29546,3485.2,3484.2,0.229614]
[1718976122567,2.4961,3485.7,3484.3,0.55]
[1718976122568,2.29581,3484.6,3484.3,0.55]
[1718976122717,2.29581,3484.6,3484.2,0.55]
[1718976122911,2.29575,3484.7,3484.2,0.55]
[1718976123117,2.29562,3484.9,3484.3,2.29599]
[1718976123363,2.29556,3485.0,3484.5,2.29587]
[1718976123571,2.29556,3485.0,3484.6,0.55]
[1718976123730,2.29526,3485.5,3484.9,2.29561]
[1718976123929,2.29527,3485.5,3484.9,2.29561]
[1718976124265,2.29542,3485.2,3485.0,0.55]
[1718976124419,2.29542,3485.2,3484.6,2.9209]
[1718976124616,0.23506,3485.8,3484.8,2.29568]
[1718976124617,2.29518,3485.6,3484.8,2.29568]
[1718976124814,2.29518,3485.6,3484.9,0.55]
[1718976125239,2.29537,3485.3,3484.8,2.84567]
[1718976125434,2.29543,3485.2,3484.8,0.55]
[1718976125746,2.29522,3485.5,3484.7,0.55]
[1718976125951,2.29515,3485.6,3484.9,2.29561]
[1718976126156,2.29515,3485.6,3485.1,2.29548]
[1718976126361,2.29476,3486.2,3485.1,2.29548]
[1718976126577,2.381,3486.6,3485.2,0.55]
[1718976126578,4.67555,3486.6,3485.2,0.55]
[1718976126781,2.29509,3485.7,3485.2,2.84541]
[1718976127148,2.29509,3485.7,3485.2,0.55]
[1718976127353,2.2953,3485.4,3485.2,0.55]
[1718976127551,2.29534,3485.4,3484.6,22.0209]
[1718976127741,2.29543,3485.2,3484.6,19.65]
[1718976127935,2.29563,3484.9,3484.6,19.622]
[1718976128183,2.2572,3485.5,3484.1,4.73534]
[1718976128184,2.29574,3484.7,3484.1,2.4392]
[1718976128389,2.29574,3484.7,3483.9,9.66626]
[1718976128390,2.29558,3485.0,3483.9,7.37]
[1718976128535,2.29621,3484.0,3483.9,7.37]
[1718976128742,2.29542,3485.2,3483.5,0.29874247]
[1718976128743,2.29558,3485.0,3483.5,0.29874247]
[1718976128975,2.29611,3484.2,3483.6,2.29645]
[1718976129175,0.95600085,3484.9,3483.5,0.29874247]
[1718976129176,2.29603,3484.3,3483.5,0.29874247]
[1718976129386,2.29654,3483.5,3483.4,0.121277]
[1718976129565,4.59308,3483.5,3483.4,0.121277]
[1718976129873,2.29654,3483.5,3483.4,0.121277]
[1718976130179,5.052381,3483.5,3483.4,0.121277]
[1718976130379,7.348921,3483.5,3483.4,0.121277]
[1718976131281,5.052381,3483.5,3483.4,0.121277]
[1718976131441,7.348921,3483.5,3483.4,0.121277]
[1718976131776,5.052381,3483.5,3483.4,0.121277]
[1718976131985,2.29654,3483.5,3483.4,0.121277]
[1718976132581,6.86162,3483.5,3483.4,0.121277]